{"text_format":"3","workbook":"xlsx","n_sheets":2,"sheets":["Журнал учета ответов","Сводка ответов"],"not_rendered":{"charts":2,"defined_names":22},"read":"whole","date_system":"1900"}

{"sheet":"Журнал учета ответов","index":0,"n_rows":15,"n_cols":15,"rows_kept":15,"merged":[[0,3,0,4],[0,5,0,7],[1,3,1,14]]}
[{"$nulls":5},"СВОДКА ОТВЕТОВ"]
[null,"ДАТА СВАДЬБЫ",null,"Журнал учета приглашений на свадьбу"]
[null,{"$f":"TODAY()+283","v":"2019-06-23"},null,"ИМЯ ГОСТЯ","ОТПРАВЛЕНО?","ПОДТВЕРЖДЕНИЕ ПОЛУЧЕНО?","КОЛ-ВО","ГОСТЬ","СВЯЗЬ","АДРЕС","ГОРОД","РЕГИОН","ИНДЕКС","ТЕЛЕФОН","АДРЕС ЭЛЕКТРОННОЙ ПОЧТЫ"]
[null,"ОСТАЛОСЬ ДНЕЙ",null,"Имя 1","Да","Да",1,"Один из супругов","Брат","Адрес","Город","Регион","Индекс","Телефон","proverka@example.com"]
[null,{"$f":"ОсталосьДней","v":283},null,"Имя 2","Да","Нет",3,"Один из супругов","Друг","Адрес","Город","Регион","Индекс","Телефон","proverka@example.com"]
[null,"ПРИДУТ",null,"Имя 3","Да","Да",1,"Другое","Друг","Адрес","Город","Регион","Индекс","Телефон","proverka@example.com"]
[null,{"$f":"ВсегоПридут","v":12},null,"Имя 4","Да","Нет",2,"Оба супруга","Друг","Адрес","Город","Регион","Индекс","Телефон","proverka@example.com"]
[null,"НЕ СМОГУТ ПРИДТИ",null,"Имя 5","Да","Да",2,"Оба супруга","Друг","Адрес","Город","Регион","Индекс","Телефон","proverka@example.com"]
[null,{"$f":"ВсегоНеПридут","v":6},null,"Имя 6","Да","Под вопросом",null,"Другое","Друг","Адрес","Город","Регион","Индекс","Телефон","proverka@example.com"]
[null,"НЕИЗВЕСТНО",null,"Имя 7","Да","Да",2,"Оба супруга","Друг","Адрес","Город","Регион","Индекс","Телефон","proverka@example.com"]
[null,{"$f":"ОтветыНеизвестно","v":1},null,"Имя 8","Да","Нет",1,"Другое","Друг","Адрес","Город","Регион","Индекс","Телефон","proverka@example.com"]
[{"$nulls":3},"Имя 9","Да","Да",4,"Один из супругов","Друг","Адрес","Город","Регион","Индекс","Телефон","proverka@example.com"]
[{"$nulls":3},"Имя 10","Да","Да",2,"Один из супругов","Друг","Адрес","Город","Регион","Индекс","Телефон","proverka@example.com"]
[{"$nulls":3},"Имя 11","Да",null,null,"Оба супруга","Брат","Адрес","Город","Регион","Индекс","Телефон","proverka@example.com"]
[{"$nulls":3},"ИТОГО:",{"$f":"COUNTIF('Журнал учета ответов'!$E$4:$E$14,\"Да\")","v":11},{"$f":"COUNTA('Журнал учета ответов'!$F$4:$F$14)","v":10},{"$f":"SUBTOTAL(109,ТаблицаПриглашений[КОЛ-ВО])","v":18}]

{"sheet":"Сводка ответов","index":1,"n_rows":11,"n_cols":15,"rows_kept":11,"merged":[[0,3,0,4],[0,5,0,8],[1,3,1,11],[2,3,6,3],[2,4,6,4],[7,3,11,3],[7,4,11,4]]}
[{"$nulls":3},"ЖУРНАЛ УЧЕТА ОТВЕТОВ"]
[null,"ДАТА СВАДЬБЫ",null,"Сводка ответов",{"$nulls":10},"Заметки"]
[null,{"$f":"ДатаСвадьбы","v":"2019-06-23"},null,"ДА","Линейчатая диаграмма с группировкой, на которой показаны типы гостей, ответивших «Да»."]
[null,"ОСТАЛОСЬ ДНЕЙ",{"$nulls":3},"ДРУГОЕ",{"$f":"IFERROR(SUMIFS(ТаблицаПриглашений[КОЛ-ВО],ТаблицаПриглашений[ГОСТЬ],\"=Другое\",ТаблицаПриглашений[ПОДТВЕРЖДЕНИЕ ПОЛУЧЕНО?],\"Да\"),0)","v":1},{"$f":"ТаблицаПриглашений[[#Totals],[ОТПРАВЛЕНО?]]","v":11}]
[null,{"$f":"ОсталосьДней","v":283},{"$nulls":3},"ОБА СУПРУГА",{"$f":"IFERROR(SUMIFS(ТаблицаПриглашений[КОЛ-ВО],ТаблицаПриглашений[ГОСТЬ],\"=Оба супруга\",ТаблицаПриглашений[ПОДТВЕРЖДЕНИЕ ПОЛУЧЕНО?],\"Да\"),0)","v":4},{"$f":"ТаблицаПриглашений[[#Totals],[ОТПРАВЛЕНО?]]","v":11}]
[null,"ПРИДУТ",{"$nulls":3},"ОДИН ИЗ СУПРУГОВ",{"$f":"IFERROR(SUMIFS(ТаблицаПриглашений[КОЛ-ВО],ТаблицаПриглашений[ГОСТЬ],\"=Один из супругов\",ТаблицаПриглашений[ПОДТВЕРЖДЕНИЕ ПОЛУЧЕНО?],\"Да\"),0)","v":7},{"$f":"ТаблицаПриглашений[[#Totals],[ОТПРАВЛЕНО?]]","v":11}]
[null,{"$f":"ВсегоПридут","v":12}]
[null,"НЕ СМОГУТ ПРИДТИ",null,"НЕТ","Линейчатая диаграмма с группировкой, на которой показаны типы гостей, ответивших «Нет»."]
[null,{"$f":"ВсегоНеПридут","v":6},{"$nulls":3},"ДРУГОЕ",{"$f":"IFERROR(SUMIFS(ТаблицаПриглашений[КОЛ-ВО],ТаблицаПриглашений[ГОСТЬ],\"=Другое\",ТаблицаПриглашений[ПОДТВЕРЖДЕНИЕ ПОЛУЧЕНО?],\"Нет\"),0)","v":1},{"$f":"ТаблицаПриглашений[[#Totals],[ОТПРАВЛЕНО?]]","v":11}]
[null,"НЕИЗВЕСТНО",{"$nulls":3},"ОБА СУПРУГА",{"$f":"IFERROR(SUMIFS(ТаблицаПриглашений[КОЛ-ВО],ТаблицаПриглашений[ГОСТЬ],\"=Оба супруга\",ТаблицаПриглашений[ПОДТВЕРЖДЕНИЕ ПОЛУЧЕНО?],\"Нет\"),0)","v":2},{"$f":"ТаблицаПриглашений[[#Totals],[ОТПРАВЛЕНО?]]","v":11}]
[null,{"$f":"ОтветыНеизвестно","v":1},{"$nulls":3},"ОДИН ИЗ СУПРУГОВ",{"$f":"IFERROR(SUMIFS(ТаблицаПриглашений[КОЛ-ВО],ТаблицаПриглашений[ГОСТЬ],\"=Один из супругов\",ТаблицаПриглашений[ПОДТВЕРЖДЕНИЕ ПОЛУЧЕНО?],\"Нет\"),0)","v":3},{"$f":"ТаблицаПриглашений[[#Totals],[ОТПРАВЛЕНО?]]","v":11}]